[Event "WYCC 2018 O18"]
[Site "Halkidiki"]
[Date "2018.10.26"]
[Round "7"]
[White "Szabo, Marton Mihaly"]
[Black "Manu David Suthandram R"]
[Result "1/2-1/2"]
[ECO "B20"]
[WhiteElo "2307"]
[BlackElo "1970"]
[Annotator "NA"]
[PlyCount "96"]
[EventDate "2018.10.20"]
[EventType "swiss"]
[EventCountry "GRE"]
[SourceTitle "playchess.com"]
[Source "ChessBase"]
[SourceQuality "1"]
[TimeControl "40/5400+30:1800+30"]

1. e4 {[%emt 0:00:00]} c5 {[%emt 0:00:00]} 2. c4 {[%emt 0:00:00]} Nc6 {[%emt 0:00:19]} 3. Nc3 {[%emt 0:00:00]} e6 {[%emt 0:01:25]} 4. g3 {[%emt 0:00:00]} b6 {[%emt 0:00:30]} 5. Bg2 {[%emt 0:00:11]} Bb7 {[%emt 0:00:05]} 6. Nge2 {[%emt 0:00:20]} a6 {[%emt 0:06:03]} 7. O-O {[%emt 0:00:53]} Qc7 {[%emt 0:00:10]} 8. d3 {[%emt 0:00:21]} g6 $16 {[%emt 0:10:31]} (8... Be7 $14) 9. Be3 {[%emt 0:05:46]} Bg7 {[%emt 0:00:33]} 10. d4 {[%emt 0:05:57]} d6 {[%emt 0:10:34]} 11. Rc1 {[%emt 0:08:11]} Nge7 {[%emt 0:04:58]} 12. b3 {[%emt 0:01:36]} O-O {[%emt 0:02:06]} 13. h3 {[%emt 0:06:44]} Rac8 {[%emt 0:18:05]} 14. Qd2 {[%emt 0:12:45]} e5 15. dxe5 {[%emt 0:03:52]} dxe5 {[%emt 0:02:56]} 16. Nd5 {[%emt 0:00:37]} Nxd5 {[%emt 0:00:43]} 17. cxd5 {[%emt 0:03:15]} Nd4 {[%emt 0:00:55]} 18. f4 {[%emt 0:15:10]} Qd6 {[%emt 0:13:24]} 19. fxe5 {[%emt 0:13:53]} Nxe2+ {[%emt 0:00:10]} 20. Qxe2 {[%emt 0:00:11]} Bxe5 {[%emt 0:00:04]} 21. Bf4 {[%emt 0:01:07]} Rfe8 {[%emt 0:01:16]} 22. Qf3 {[%emt 0:01:16]} Rc7 {[%emt 0:01:12]} 23. Kh2 {[%emt 0:02:47]} Kg7 {[%emt 0:01:12]} 24. a4 {[%emt 0:06:10]} f6 {[%emt 0:00:13]} 25. Rf2 {[%emt 0:03:49]} Rce7 {[%emt 0:03:43]} 26. a5 {[%emt 0:01:31]} b5 {[%emt 0:04:28]} 27. Rfc2 {[%emt 0:01:17]} Rc7 {[%emt 0:06:34]} 28. h4 {[%emt 0:02:05]} Bxf4 {[%emt 0:06:45]} 29. Qxf4 {[%emt 0:00:47]} Re5 {[%emt 0:00:04]} 30. Qf2 {[%emt 0:01:32]} f5 {[%emt 0:00:21]} 31. Rxc5 {[%emt 0:00:36]} Rce7 {[%emt 0:00:09]} 32. exf5 {[%emt 0:00:59]} Rxf5 {[%emt 0:01:27]} 33. Qd4+ {[%emt 0:00:16]} Qf6 {[%emt 0:00:04]} 34. Qxf6+ {[%emt 0:00:58]} Kxf6 {[%emt 0:00:04]} 35. g4 {[%emt 0:01:49]} Rf2 {[%emt 0:01:42]} 36. g5+ {[%emt 0:00:27]} Kf7 {[%emt 0:00:57]} 37. Kg3 {[%emt 0:00:40]} Rd2 {[%emt 0:00:04]} 38. Rc7 {[%emt 0:00:38]} Bxd5 {[%emt 0:00:56]} 39. Rf1+ {[%emt 0:00:27]} Ke8 {[%emt 0:00:10]} 40. Rc8+ {[%emt 0:00:00]} Kd7 {[%emt 0:00:00]} 41. Bh3+ {[%emt 0:01:05]} Kd6 {[%emt 0:09:15]} 42. Rc3 {[%emt 0:06:28]} Rde2 {[%emt 0:06:57]} 43. Rf6+ {[%emt 0:02:41]} Ke5 {[%emt 0:00:07]} 44. Rd3 {[%emt 0:05:26]} Be4 {[%emt 0:07:00]} 45. Rd8 {[%emt 0:01:46]} Re3+ {[%emt 0:00:31]} 46. Kh2 {[%emt 0:00:16]} Rxb3 {[%emt 0:00:34]} 47. Rxa6 {[%emt 0:01:00]} Rb2+ {[%emt 0:01:01]} 48. Kg3 {[%emt 0:00:13]} Rb3+ {[%emt 0:00:06]} 1/2-1/2

[Event "WYCC 2018 O18"]
[Site "Halkidiki"]
[Date "2018.10.26"]
[Round "7"]
[White "Carnicelli, Valerio"]
[Black "Kadianis, Georgios"]
[Result "1-0"]
[ECO "C45"]
[WhiteElo "2299"]
[BlackElo "1928"]
[Annotator "NA"]
[PlyCount "85"]
[EventDate "2018.10.20"]
[EventType "swiss"]
[EventCountry "GRE"]
[SourceTitle "playchess.com"]
[Source "ChessBase"]
[SourceQuality "1"]
[TimeControl "40/5400+30:1800+30"]

1. e4 {[%emt 0:00:00]} e5 {[%emt 0:00:00]} 2. Nf3 {[%emt 0:00:00]} Nc6 {[%emt 0:00:00]} 3. d4 {[%emt 0:00:00]} exd4 {[%emt 0:00:00]} 4. Nxd4 {[%emt 0:00:00]} Bc5 {[%emt 0:00:00]} 5. Nb3 {[%emt 0:00:00]} Bb6 {[%emt 0:00:00]} 6. Nc3 {[%emt 0:00:00]} d6 {[%emt 0:00:05]} 7. Qe2 {[%emt 0:00:00]} Nge7 {[%emt 0:00:08]} 8. Be3 {[%emt 0:00:02]} O-O {[%emt 0:00:11]} 9. O-O-O {[%emt 0:00:03]} f5 {[%emt 0:00:57]} 10. f4 {[%emt 0:00:10]} fxe4 {[%emt 0:00:55]} 11. g3 {[%emt 0:01:22]} Qe8 {[%emt 0:02:51]} 12. Bxb6 $14 {[%emt 0:00:38]} axb6 {[%emt 0:00:06]} 13. Qxe4 {[%emt 0:00:05]} Kh8 {[%emt 0:02:28]} 14. a3 {[%emt 0:01:01]} Bf5 {[%emt 0:02:44]} 15. Qc4 {[%emt 0:00:24]} d5 {[%emt 0:30:44]} 16. Qe2 {[%emt 0:05:54]} Qg6 {[%emt 0:12:48]} 17. Bg2 {[%emt 0:13:31]} Rfe8 {[%emt 0:02:30]} 18. Qf2 {[%emt 0:07:15]} Na5 {[%emt 0:08:16]} 19. Nxa5 {[%emt 0:10:22]} Rxa5 {[%emt 0:00:09]} 20. Nxd5 {[%emt 0:17:11]} Nxd5 {[%emt 0:01:44]} 21. Rxd5 {[%emt 0:00:32]} Rxd5 {[%emt 0:02:33]} 22. Bxd5 {[%emt 0:00:06]} c6 {[%emt 0:00:03]} 23. Bf3 {[%emt 0:00:22]} b5 {[%emt 0:01:28]} 24. g4 {[%emt 0:05:08]} Be4 {[%emt 0:04:36]} 25. Re1 {[%emt 0:03:43]} Bxf3 {[%emt 0:03:49]} 26. Rxe8+ {[%emt 0:00:04]} Qxe8 {[%emt 0:00:02]} 27. Qxf3 {[%emt 0:00:06]} h5 {[%emt 0:02:00]} 28. g5 {[%emt 0:08:11]} Qe1+ {[%emt 0:02:19]} 29. Qd1 {[%emt 0:00:04]} Qe3+ {[%emt 0:00:36]} 30. Kb1 {[%emt 0:00:04]} Qxf4 {[%emt 0:02:30]} 31. g6 {[%emt 0:07:16]} Kg8 {[%emt 0:07:45]} 32. b3 {[%emt 0:00:18]} Qf6 {[%emt 0:04:37]} 33. Qxh5 {[%emt 0:00:47]} Kf8 {[%emt 0:00:57]} 34. Qg4 {[%emt 0:00:43]} b6 {[%emt 0:01:54]} 35. h4 {[%emt 0:00:43]} c5 {[%emt 0:02:10]} 36. h5 {[%emt 0:00:57]} Qc3 {[%emt 0:03:07]} 37. Qf5+ {[%emt 0:06:37]} Ke7 {[%emt 0:00:24]} 38. Qf7+ {[%emt 0:00:28]} Kd6 {[%emt 0:00:08]} 39. h6 {[%emt 0:00:06]} b4 {[%emt 0:01:22]} 40. Qf4+ {[%emt 0:00:00]} Kc6 {[%emt 0:00:00]} 41. axb4 {[%emt 0:08:53]} Qe1+ {[%emt 0:02:03]} 42. Ka2 {[%emt 0:00:19]} cxb4 {[%emt 0:00:28]} 43. hxg7 {[%emt 0:00:15]} 1-0

[Event "WYCC 2018 O18"]
[Site "Halkidiki"]
[Date "2018.10.26"]
[Round "7"]
[White "Kandil, Adham"]
[Black "Vourlis-Koletis, Miltiadis"]
[Result "1-0"]
[ECO "B03"]
[WhiteElo "2292"]
[BlackElo "1839"]
[Annotator "NA"]
[PlyCount "37"]
[EventDate "2018.10.20"]
[EventType "swiss"]
[EventCountry "GRE"]
[SourceTitle "playchess.com"]
[Source "ChessBase"]
[SourceQuality "1"]
[TimeControl "40/5400+30:1800+30"]

1. e4 {[%emt 0:00:45]} Nf6 {[%emt 0:01:31]} 2. e5 {[%emt 0:00:23]} Nd5 {[%emt 0:00:06]} 3. c4 {[%emt 0:00:33]} Nb6 {[%emt 0:00:09]} 4. d4 {[%emt 0:00:13]} d6 {[%emt 0:00:06]} 5. f4 {[%emt 0:00:03]} dxe5 {[%emt 0:01:52]} 6. fxe5 {[%emt 0:00:10]} Nc6 {[%emt 0:01:03]} 7. Be3 {[%emt 0:00:51]} Bf5 {[%emt 0:01:34]} 8. Nc3 {[%emt 0:01:24]} f6 {[%emt 0:03:49]} 9. Nf3 {[%emt 0:05:42]} e6 {[%emt 0:04:37]} 10. exf6 {[%emt 0:01:18]} Qxf6 {[%emt 0:02:22]} 11. Bg5 {[%emt 0:11:38]} Qf7 {[%emt 0:03:02]} 12. d5 {[%emt 0:05:59]} Nb4 {[%emt 0:08:05]} 13. Ne5 {[%emt 0:00:09]} Nc2+ {[%emt 0:01:09]} 14. Kd2 {[%emt 0:00:11]} Qg8 {[%emt 0:00:53]} 15. g4 {[%emt 0:08:55]} h6 {[%emt 0:07:55]} 16. gxf5 {[%emt 0:00:24]} hxg5 {[%emt 0:00:06]} 17. Kxc2 {[%emt 0:00:05]} exd5 {[%emt 0:01:35]} 18. Ng6 {[%emt 0:00:52]} Rh6 {[%emt 0:02:10]} 19. Qe1+ {[%emt 0:00:20]} 1-0

[Event "WYCC 2018 O18"]
[Site "Halkidiki"]
[Date "2018.10.26"]
[Round "7"]
[White "Martinez Fernandez, Adrian"]
[Black "Gonzalez Carrillo, Javier Omar"]
[Result "1/2-1/2"]
[ECO "B33"]
[WhiteElo "2277"]
[BlackElo "2031"]
[Annotator "NA"]
[PlyCount "115"]
[EventDate "2018.10.20"]
[EventType "swiss"]
[EventCountry "GRE"]
[SourceTitle "playchess.com"]
[Source "ChessBase"]
[SourceQuality "1"]
[TimeControl "40/5400+30:1800+30"]

1. e4 {[%emt 0:00:00]} c5 {[%emt 0:00:14]} 2. Nf3 {[%emt 0:00:00]} Nc6 {[%emt 0:00:07]} 3. d4 {[%emt 0:00:00]} cxd4 {[%emt 0:00:03]} 4. Nxd4 {[%emt 0:00:00]} Nf6 {[%emt 0:00:02]} 5. Nc3 {[%emt 0:00:03]} e5 {[%emt 0:00:03]} 6. Ndb5 {[%emt 0:00:07]} d6 {[%emt 0:00:02]} 7. Bg5 {[%emt 0:00:10]} a6 {[%emt 0:00:03]} 8. Na3 {[%emt 0:00:08]} b5 {[%emt 0:00:04]} 9. Nd5 {[%emt 0:00:06]} Be7 {[%emt 0:00:04]} 10. Bxf6 {[%emt 0:00:09]} Bxf6 {[%emt 0:00:02]} 11. c4 {[%emt 0:00:10]} b4 {[%emt 0:02:22]} 12. Nc2 {[%emt 0:00:08]} O-O {[%emt 0:02:32]} 13. Ncxb4 {[%emt 0:18:51]} Nxb4 {[%emt 0:00:30]} 14. Nxb4 {[%emt 0:00:03]} Qb6 {[%emt 0:01:36]} 15. Qd2 {[%emt 0:05:29]} Rb8 {[%emt 0:01:53]} 16. Nd3 {[%emt 0:02:56]} Qd4 {[%emt 0:05:52]} 17. f3 {[%emt 0:01:12]} Be6 {[%emt 0:01:06]} 18. Rc1 {[%emt 0:05:35]} Bxc4 {[%emt 0:04:25]} 19. b3 {[%emt 0:00:33]} Be6 {[%emt 0:11:41]} 20. Qf2 {[%emt 0:02:26]} Qxf2+ {[%emt 0:08:14]} 21. Kxf2 {[%emt 0:01:57]} Rfc8 {[%emt 0:04:02]} 22. Be2 {[%emt 0:01:24]} Bg5 {[%emt 0:00:31]} 23. Rxc8+ {[%emt 0:03:26]} Rxc8 {[%emt 0:00:04]} 24. Rb1 {[%emt 0:05:26]} a5 {[%emt 0:09:02]} 25. Rb2 {[%emt 0:03:02]} f5 {[%emt 0:03:56]} 26. Ne1 {[%emt 0:04:21]} fxe4 {[%emt 0:18:19]} 27. fxe4 {[%emt 0:00:02]} Bd8 {[%emt 0:07:45]} 28. Bf3 {[%emt 0:05:14]} Bb6+ {[%emt 0:01:04]} 29. Ke2 {[%emt 0:00:03]} g5 {[%emt 0:02:33]} 30. h3 {[%emt 0:00:43]} Rf8 {[%emt 0:02:14]} 31. Rc2 {[%emt 0:01:45]} Bd7 {[%emt 0:00:41]} 32. Kd1 {[%emt 0:08:19]} Kg7 {[%emt 0:00:51]} 33. Rd2 {[%emt 0:06:47]} Rf6 {[%emt 0:02:11]} 34. Rd3 {[%emt 0:07:08]} Kg6 {[%emt 0:05:31]} 35. Nc2 {[%emt 0:00:06]} Bb5 {[%emt 0:02:45]} 36. Rc3 {[%emt 0:03:06]} Rf8 {[%emt 0:00:29]} 37. Na3 {[%emt 0:00:35]} Bd7 {[%emt 0:01:17]} 38. Nc4 {[%emt 0:00:05]} Bd4 {[%emt 0:00:30]} 39. Rd3 {[%emt 0:08:46]} Bb5 {[%emt 0:00:11]} 40. Rd2 {[%emt 0:00:00]} Bxc4 {[%emt 0:00:00]} 41. bxc4 {[%emt 0:00:25]} Rb8 {[%emt 0:08:27]} 42. Rc2 {[%emt 0:03:50]} h5 {[%emt 0:00:41]} 43. Kd2 {[%emt 0:01:23]} Rf8 {[%emt 0:00:53]} 44. Ke2 {[%emt 0:03:36]} Rf4 {[%emt 0:02:30]} 45. g3 {[%emt 0:00:24]} Rf8 {[%emt 0:00:04]} 46. Rd2 {[%emt 0:01:21]} Rb8 {[%emt 0:08:27]} 47. Kd3 {[%emt 0:00:23]} Rb4 {[%emt 0:00:30]} 48. Bd1 {[%emt 0:01:23]} Rb8 {[%emt 0:02:19]} 49. Bf3 {[%emt 0:00:55]} Rb1 {[%emt 0:00:20]} 50. Bd1 {[%emt 0:00:59]} Rc1 {[%emt 0:00:45]} 51. Ke2 {[%emt 0:01:12]} Rxc4 {[%emt 0:01:06]} 52. Bb3 {[%emt 0:00:57]} Rc8 {[%emt 0:03:34]} 53. Rd1 {[%emt 0:00:48]} g4 {[%emt 0:04:41]} 54. hxg4 {[%emt 0:01:45]} hxg4 {[%emt 0:00:09]} 55. Be6 {[%emt 0:01:46]} Rc3 {[%emt 0:04:11]} 56. Rd3 {[%emt 0:00:45]} Rxd3 {[%emt 0:00:11]} 57. Kxd3 {[%emt 0:00:02]} Kg5 {[%emt 0:00:07]} 58. Ke2 {[%emt 0:00:10]} 1/2-1/2

[Event "WYCC 2018 O18"]
[Site "Halkidiki"]
[Date "2018.10.26"]
[Round "7"]
[White "Alexiadis, Hristos"]
[Black "Muha, Miljenko"]
[Result "1-0"]
[ECO "C50"]
[WhiteElo "2263"]
[BlackElo "2365"]
[Annotator "NA"]
[PlyCount "111"]
[EventDate "2018.10.20"]
[EventType "swiss"]
[EventCountry "GRE"]
[SourceTitle "playchess.com"]
[Source "ChessBase"]
[SourceQuality "1"]
[TimeControl "40/5400+30:1800+30"]

1. e4 {[%emt 0:00:26]} e5 {[%emt 0:00:10]} 2. Nf3 {[%emt 0:00:44]} Nc6 {[%emt 0:00:02]} 3. Bc4 {[%emt 0:02:25]} Nf6 {[%emt 0:00:23]} 4. d3 {[%emt 0:01:08]} Bc5 {[%emt 0:00:23]} 5. c3 {[%emt 0:00:22]} O-O {[%emt 0:02:35]} 6. Nbd2 {[%emt 0:01:39]} d6 {[%emt 0:05:55]} 7. h3 {[%emt 0:05:05]} Ne7 {[%emt 0:02:57]} 8. O-O {[%emt 0:04:33]} Ng6 $11 {[%emt 0:01:35] LiveBook: 7 Games} 9. d4 {[%emt 0:10:19]} Bb6 {[%emt 0:06:30]} 10. Re1 {[%emt 0:02:04]} exd4 {[%emt 0:07:10]} 11. Nxd4 {[%emt 0:01:03]} d5 {[%emt 0:11:23]} 12. exd5 {[%emt 0:00:09]} Nxd5 {[%emt 0:00:08]} 13. Ne4 {[%emt 0:02:48]} c6 {[%emt 0:06:05]} 14. Bb3 {[%emt 0:07:11]} h6 {[%emt 0:03:42]} 15. a4 {[%emt 0:13:06]} Ndf4 {[%emt 0:06:02]} 16. Qf3 {[%emt 0:04:30]} Bc7 {[%emt 0:00:24]} 17. Bxf4 {[%emt 0:03:55]} Nxf4 {[%emt 0:00:31]} 18. Rad1 {[%emt 0:00:54]} Qh4 {[%emt 0:02:05]} 19. Ng3 {[%emt 0:08:27]} Qg5 {[%emt 0:03:08]} 20. Bc2 {[%emt 0:06:51]} Nd5 {[%emt 0:05:32]} 21. Bb3 {[%emt 0:02:36]} Nf6 {[%emt 0:07:27]} 22. Ndf5 {[%emt 0:04:06]} Bxf5 {[%emt 0:10:59]} 23. Nxf5 {[%emt 0:00:06]} Rae8 {[%emt 0:02:37]} 24. g3 {[%emt 0:02:41]} Rxe1+ {[%emt 0:07:59]} 25. Rxe1 {[%emt 0:00:04]} g6 {[%emt 0:01:11]} 26. Nxh6+ {[%emt 0:09:36]} Kg7 {[%emt 0:00:00]} 27. Nxf7 {[%emt 0:00:05]} Rxf7 {[%emt 0:00:37]} 28. Bxf7 {[%emt 0:00:02]} Kxf7 {[%emt 0:00:08]} 29. Rd1 {[%emt 0:03:39]} Qf5 {[%emt 0:02:39]} 30. Qxf5 {[%emt 0:00:04]} gxf5 {[%emt 0:00:04]} 31. f4 {[%emt 0:00:10]} b5 {[%emt 0:01:03]} 32. axb5 {[%emt 0:00:13]} cxb5 {[%emt 0:00:02]} 33. Kg2 {[%emt 0:00:14]} Ke6 {[%emt 0:01:29]} 34. Kf3 {[%emt 0:00:06]} Nd5 {[%emt 0:00:16]} 35. Re1+ {[%emt 0:01:22]} Kf7 {[%emt 0:00:07]} 36. Rc1 {[%emt 0:02:52]} Nb6 {[%emt 0:01:36]} 37. Rd1 {[%emt 0:00:44]} a5 {[%emt 0:00:44]} 38. g4 {[%emt 0:00:08]} fxg4+ {[%emt 0:00:02]} 39. hxg4 {[%emt 0:00:04]} a4 {[%emt 0:00:50]} 40. g5 {[%emt 0:00:00]} Ke7 {[%emt 0:00:00]} 41. Kg4 {[%emt 0:04:31]} Nc4 {[%emt 0:01:29]} 42. Re1+ {[%emt 0:00:02]} Kf7 {[%emt 0:01:24]} 43. Re2 {[%emt 0:00:27]} Bb6 {[%emt 0:01:12]} 44. Kf3 {[%emt 0:03:51]} b4 {[%emt 0:01:30]} 45. cxb4 {[%emt 0:04:34]} Bd4 {[%emt 0:00:01]} 46. Rc2 {[%emt 0:00:09]} Nxb2 {[%emt 0:02:20]} 47. Rc7+ {[%emt 0:00:05]} Kg8 {[%emt 0:02:48]} 48. Rc8+ {[%emt 0:00:07]} Kf7 {[%emt 0:00:28]} 49. Ra8 {[%emt 0:02:27]} Ke6 {[%emt 0:02:47]} 50. Ke4 {[%emt 0:01:04]} Bc3 {[%emt 0:00:01]} 51. f5+ {[%emt 0:00:14]} Kd6 {[%emt 0:00:40]} 52. f6 {[%emt 0:00:57]} Ke6 {[%emt 0:01:58]} 53. Ra6+ {[%emt 0:00:13]} Kf7 {[%emt 0:00:26]} 54. Kf5 {[%emt 0:00:07]} Bxf6 {[%emt 0:01:39]} 55. gxf6 {[%emt 0:00:07]} Nd3 {[%emt 0:00:08]} 56. Rxa4 {[%emt 0:00:22]} 1-0

[Event "WYCC 2018 O18"]
[Site "Halkidiki"]
[Date "2018.10.26"]
[Round "7"]
[White "Galiana Fernandez, Adrian"]
[Black "Zhu, Brandon"]
[Result "0-1"]
[ECO "C55"]
[WhiteElo "2261"]
[BlackElo "1914"]
[Annotator "NA"]
[PlyCount "80"]
[EventDate "2018.10.20"]
[EventType "swiss"]
[EventCountry "GRE"]
[SourceTitle "playchess.com"]
[Source "ChessBase"]
[SourceQuality "1"]
[TimeControl "40/5400+30:1800+30"]

1. e4 {[%emt 0:00:00]} e5 {[%emt 0:00:00]} 2. Nf3 {[%emt 0:00:00]} Nc6 {[%emt 0:00:05]} 3. Bc4 {[%emt 0:00:00]} Nf6 {[%emt 0:00:15]} 4. d3 {[%emt 0:00:00]} Be7 {[%emt 0:00:10] LiveBook: 4305 Games} 5. O-O {[%emt 0:00:00]} O-O {[%emt 0:00:06]} 6. Re1 {[%emt 0:01:01]} d6 {[%emt 0:00:06]} 7. a4 {[%emt 0:00:05]} Na5 {[%emt 0:01:16]} 8. Ba2 {[%emt 0:00:10]} c5 {[%emt 0:00:12]} 9. c3 {[%emt 0:00:22]} Nc6 {[%emt 0:00:56]} 10. Na3 {[%emt 0:09:01]} Re8 {[%emt 0:04:25]} 11. Bg5 {[%emt 0:07:02]} Nd7 $14 {[%emt 0:02:58]} 12. Bd2 {[%emt 0:06:02]} Bf6 {[%emt 0:03:38]} 13. b4 {[%emt 0:13:51]} cxb4 {[%emt 0:02:57]} 14. cxb4 {[%emt 0:00:07]} a5 {[%emt 0:01:56]} 15. Nb5 {[%emt 0:17:53]} Nf8 {[%emt 0:05:26]} 16. bxa5 {[%emt 0:00:54]} Ne6 {[%emt 0:06:03]} 17. Qb3 {[%emt 0:04:22]} Qe7 {[%emt 0:07:11]} 18. Qa3 {[%emt 0:03:05]} Nc5 {[%emt 0:06:49]} 19. Rac1 {[%emt 0:03:53]} b6 {[%emt 0:04:58]} 20. Bd5 {[%emt 0:02:03]} Bb7 {[%emt 0:01:24]} 21. Nxd6 {[%emt 0:04:53]} Qxd6 {[%emt 0:03:10]} 22. axb6 {[%emt 0:00:07]} Be7 {[%emt 0:09:30]} 23. a5 {[%emt 0:18:27]} Rec8 {[%emt 0:08:36]} 24. Bg5 {[%emt 0:08:09]} Bf8 {[%emt 0:05:28]} 25. Bd2 {[%emt 0:00:30]} h6 {[%emt 0:08:21]} 26. Qa2 {[%emt 0:00:07]} Nxd3 {[%emt 0:01:06]} 27. Bxf7+ {[%emt 0:00:32]} Kh8 {[%emt 0:00:16]} 28. Be6 {[%emt 0:00:47]} Nxe1 {[%emt 0:01:49]} 29. Rxe1 {[%emt 0:00:28]} Rd8 {[%emt 0:01:27]} 30. Re3 {[%emt 0:00:08]} Nd4 {[%emt 0:01:18]} 31. Ng5 {[%emt 0:00:05]} Qe7 {[%emt 0:03:54]} 32. Nf7+ {[%emt 0:00:03]} Kh7 {[%emt 0:00:28]} 33. Bc4 {[%emt 0:00:02]} Rdc8 {[%emt 0:01:54]} 34. Rh3 {[%emt 0:01:20]} Rxc4 {[%emt 0:04:41]} 35. Qxc4 {[%emt 0:00:04]} Ne2+ {[%emt 0:01:31]} 36. Kh1 {[%emt 0:00:32]} Nf4 {[%emt 0:01:03]} 37. Bxf4 {[%emt 0:00:34]} exf4 {[%emt 0:00:11]} 38. e5 {[%emt 0:01:16]} Rxa5 {[%emt 0:00:42]} 39. Qc3 {[%emt 0:01:01]} Rc5 {[%emt 0:00:41]} 40. Qd3+ {[%emt 0:00:00]} g6 {[%emt 0:00:00]} 0-1

[Event "WYCC 2018 O18"]
[Site "Halkidiki"]
[Date "2018.10.26"]
[Round "7"]
[White "Ozates, Tuna"]
[Black "Roshka, Yevgeniy"]
[Result "1/2-1/2"]
[ECO "A45"]
[WhiteElo "2225"]
[BlackElo "2328"]
[Annotator "NA"]
[PlyCount "121"]
[EventDate "2018.10.20"]
[EventType "swiss"]
[EventCountry "GRE"]
[SourceTitle "playchess.com"]
[Source "ChessBase"]
[SourceQuality "1"]
[TimeControl "40/5400+30:1800+30"]

1. d4 {[%emt 0:00:00]} Nf6 {[%emt 0:00:17]} 2. Bg5 {[%emt 0:00:00]} d5 {[%emt 0:05:51]} 3. Bxf6 {[%emt 0:00:00]} exf6 {[%emt 0:00:01]} 4. e3 {[%emt 0:00:01]} Bd6 {[%emt 0:02:08]} 5. c4 {[%emt 0:00:06]} dxc4 {[%emt 0:01:07]} 6. Bxc4 {[%emt 0:00:07]} f5 {[%emt 0:01:19]} 7. Nf3 {[%emt 0:01:04]} O-O {[%emt 0:00:48]} 8. Nc3 {[%emt 0:00:20] LiveBook: 51 Games} c6 {[%emt 0:00:25]} 9. O-O {[%emt 0:00:25]} Nd7 {[%emt 0:01:00]} 10. Rb1 {[%emt 0:00:45]} Nf6 {[%emt 0:03:56]} 11. b4 $15 {[%emt 0:04:53]} (11. Rc1 $11) 11... Ne4 {[%emt 0:02:59]} 12. Qd3 {[%emt 0:01:32]} Qe7 {[%emt 0:02:12]} 13. b5 {[%emt 0:01:33]} Nxc3 {[%emt 0:00:16]} 14. Qxc3 {[%emt 0:00:09]} cxb5 {[%emt 0:00:08]} 15. Rxb5 {[%emt 0:03:04]} f4 {[%emt 0:00:49]} 16. exf4 {[%emt 0:03:11]} Bxf4 {[%emt 0:01:05]} 17. Re1 {[%emt 0:00:23]} Qf6 {[%emt 0:25:45]} 18. Ne5 {[%emt 0:18:36]} Qh6 {[%emt 0:03:37]} 19. g3 {[%emt 0:03:25]} Bxe5 {[%emt 0:00:06]} 20. dxe5 {[%emt 0:01:04]} Qc6 {[%emt 0:09:05]} 21. Qb3 {[%emt 0:02:05]} Qc7 {[%emt 0:01:03]} 22. Bd5 {[%emt 0:03:10]} Rb8 {[%emt 0:00:26]} 23. Rb4 {[%emt 0:05:53]} b6 {[%emt 0:01:08]} 24. Rf4 {[%emt 0:01:29]} Bb7 {[%emt 0:07:30]} 25. Bxb7 {[%emt 0:11:57]} Qxb7 {[%emt 0:00:02]} 26. e6 {[%emt 0:03:19]} fxe6 {[%emt 0:00:06]} 27. Rxe6 {[%emt 0:00:14]} Kh8 {[%emt 0:00:32]} 28. Rxf8+ {[%emt 0:00:22]} Rxf8 {[%emt 0:00:02]} 29. Qe3 {[%emt 0:00:09]} Qd7 {[%emt 0:04:42]} 30. a3 {[%emt 0:01:37]} h6 {[%emt 0:01:19]} 31. h4 {[%emt 0:06:57]} Qd1+ {[%emt 0:03:02]} 32. Kh2 {[%emt 0:01:32]} Qf3 {[%emt 0:02:23]} 33. Re8 {[%emt 0:05:03]} Kh7 {[%emt 0:00:03]} 34. Rxf8 {[%emt 0:00:20]} Qxf8 {[%emt 0:00:02]} 35. a4 {[%emt 0:00:08]} Qf5 {[%emt 0:02:51]} 36. Qd4 {[%emt 0:00:38]} Qb1 {[%emt 0:01:08]} 37. Kg2 {[%emt 0:01:31]} a6 {[%emt 0:06:06]} 38. Kf3 {[%emt 0:09:51]} b5 {[%emt 0:01:21]} 39. axb5 {[%emt 0:00:05]} axb5 {[%emt 0:00:27]} 40. Ke3 {[%emt 0:00:00]} b4 {[%emt 0:00:00]} 41. h5 {[%emt 0:09:12]} Qe1+ {[%emt 0:04:54]} 42. Kf3 {[%emt 0:04:01]} Kg8 {[%emt 0:16:42]} 43. Qd8+ {[%emt 0:06:10]} Kf7 {[%emt 0:01:50]} 44. Qd7+ {[%emt 0:00:15]} Qe7 {[%emt 0:03:05]} 45. Qd5+ {[%emt 0:00:20]} Ke8 {[%emt 0:01:19]} 46. Kg2 {[%emt 0:00:26]} Kf8 {[%emt 0:01:20]} 47. Qa8+ {[%emt 0:00:51]} Kf7 {[%emt 0:01:33]} 48. Qd5+ {[%emt 0:00:24]} Kf6 {[%emt 0:01:47]} 49. Qd4+ {[%emt 0:00:44]} Kf5 {[%emt 0:02:36]} 50. Qf4+ {[%emt 0:01:56]} Ke6 {[%emt 0:00:04]} 51. Qe4+ {[%emt 0:00:09]} Kd7 {[%emt 0:00:23]} 52. Qb7+ {[%emt 0:00:14]} Ke8 {[%emt 0:00:08]} 53. Qa8+ {[%emt 0:00:09]} Kf7 {[%emt 0:01:10]} 54. Qd5+ {[%emt 0:00:10]} Kf8 {[%emt 0:00:58]} 55. Qa8+ {[%emt 0:00:26]} Qe8 {[%emt 0:02:10]} 56. Qf3+ {[%emt 0:00:20]} Kg8 {[%emt 0:00:15]} 57. Qb3+ {[%emt 0:00:05]} Kh8 {[%emt 0:00:06]} 58. Qxb4 {[%emt 0:00:08]} Qxh5 {[%emt 0:00:05]} 59. Qb8+ {[%emt 0:00:29]} Kh7 {[%emt 0:00:03]} 60. Qb1+ {[%emt 0:00:15]} Qg6 {[%emt 0:00:28]} 61. Qb7 {[%emt 0:00:31]} 1/2-1/2